{"text_format":"1","workbook":"xlsx","n_sheets":12,"sheets":["Léeme","PROMOTOR","INVERSIONES","Amortizaciones","VENTASM2","VENTASM1","PROYECM2","PROYECM1","HIPÓTESISFM","FONDOSMANIOBRA","RESULTADOSM2","RESULTADOSM1"],"not_rendered":{"charts":0,"images":3,"macros":1,"external_links":0,"defined_names":13,"comments":0,"pivot_tables":0},"unopened":[],"bounds":{"document_bytes":16777216,"sheet_cells":100000,"rows_first":2000,"rows_last":500,"rows_between":2000,"halvings":0,"cell_chars":16384,"cell_head_chars":4096},"cells_cut":0,"cells_raw":0,"read":"whole","date_system":"1900"}

{"sheet":"Léeme","index":0,"n_rows":20,"n_cols":3,"rows_kept":20,"cut":false,"hidden":false,"merged":[[6,0,6,1],[7,0,7,1],[8,0,8,1],[9,0,9,1],[6,2,6,3],[7,2,7,3],[2,1,2,3],[3,0,3,3],[4,0,4,3],[5,2,5,3],[5,0,5,1],[10,0,10,1],[11,0,11,3],[12,0,12,3],[13,0,13,3],[8,2,8,3],[9,2,9,3],[10,2,10,3],[1,0,1,3],[22,0,22,1],[14,0,14,1],[14,2,14,3],[15,0,15,1],[16,0,16,1],[17,0,17,1],[15,2,15,3],[16,2,16,3],[17,2,17,3],[18,2,18,3],[19,2,19,3],[18,0,18,1],[19,0,19,1],[20,0,20,1],[21,0,21,1]]}
[]
["¡¡¡ATENCIÓN!!! Si tiene bloqueadas las macros no podrá utilizar este formulario excel. Para desbloquearlas vaya a la Configuración del Centro de confianza y agregue la carpeta en la que está trabajando como Ubicación de confianza. Después, cierre y vuelva a abrir este archivo."]
[0,"RECOMENDACIONES PARA CUMPLIMENTAR EL ESTUDIO ECONÓMICO-FINANCIERO (MOD.1.1.2P)"]
["La información facilitada a través de esta Memoria podrá ser utilizada para valorar el proyecto y, en su caso, para proceder a su baremación (no obstante, no  será  necesariamente  vinculante  ni  para  el  análisis  y  evaluación  del  Equipo Técnico  ni   para   la   Comisión   de   Valoración,   que   podrán introducir motivadamente las correcciones oportunas)."]
["Vd. solo debe cumplimentar las celdas que están en este color"]
["INVERSIONES",null,"Las inversiones deben coincidir en sus importes por concepto con la RELACIÓN DE PRESUPUESTOS/FACTURAS PROFORMA (MOD. A2) que acompaña a la solicitud de ayuda.\nSe tendrán en cuenta los importes SIN IVA (ya que el IVA en proyectos productivos no es subvencionable)"]
["Amortizaciones",null,"El cuadro de amortizaciones se actualiza al introducir los datos de inversiones (si se hubieran introducido mediante copiar-pegar, será necesario dar al botón de Actualizar. Se puede, no obstante, modificar el dato de Período de amortización (en años). "]
["VENTAS M2/M1. IDENTIFICACIÓN DEL MÉTODO DE ANÁLISIS",null,"IMPORTANTE: IDENTIFICACIÓN DEL MÉTODO DE ANÁLISIS. Antes de la introducción de datos econóicos, arriba de la hoja VENTASM2 debe identificar el método de análisis:\nM1 si se trata de un proyecto de Nueva Creación o nueva actividad (cumplimentará entonces solo las Hojas terminadas en M1.\nM2 si se trata de un proyecto de mejora, modernización o ampliación de una actividad ya existente. El análisi en este caso se orienta a calcular el diferencial de la situación SIN PROYECTO (si continuásemos sin realizar las inversiones propuestas) de la situación CON PROYECTO (considerando los nuevos flujos económicos derivados de introducir las inversiones consideradas). Deberá en este caso cumplimentar tanto las hojas terminadas en M1 com las terminadas en M2.\nES IMPORTANTE QUE JUSTIFIQUE (dispone de espacio por debajo de los cuadros) TODAS LAS CIFRAS ANTERIORES (tipos de productos/servicios vendidos, unidades, tendencias...)"]
["PROYECM1/PROYECM2",null,"CUADROS DE CASH FLOW o FONDOS GENERADOS: Complete los cuadros proyectando los diferentes costos o gastos en su proyecto a lo largo de 5 años. Considere el coste de las materias primas que necesita, así como de suministros. Tenga en cuenta los costes de personal, si es posible, diferenciando retribuciones del coste Seguridad Social empresa. No olvide, en su caso, incluir aquí los propios costes imputables como autónomo (salario que se asignaría más cuota Seg. Soc.). Continúe con el resto de gastos considerados y modifique la celda D17 para poner el Tipo de Gravamen para impuestos según el tipo de empresa constituida. ES IMPORTANTE QUE JUSTIFIQUE (dispone de espacio por debajo de los cuadros) TODAS LAS CIFRAS ANTERIORES (tipos de gastos, unidades, volúmenes, tendencias...)"]
["HIPÓTESISFM",null,"Se utiliza este cuadro para el cálculo de necesidades en fondo de maniobra: Días que permanecen almacenadas las materias primas o los productos terminados sin vender (o deje a 0 días si no es su caso); Días que los clientes tardan en pagar (que puede distribuir en dos partes diferenciadas porcentualmente, como, por ejemplo, si el 50 % de los clientes tardan X días y el resto 0 días (o deje ambos en 0 si no es su caso); Deje un pequeño porcentaje sobre las ventas en tesorería para pequeños gastos (normalmente entre un 2 ó 5 %). Haga lo mismo, en cuanto a días que tardará en pagar a los proveedores, para el Pasivo Circulante. El resto de cuadros en hojas siguientes vendrán calculados automáticamente."]
["Forma de entrega",null,"Asegúrese que ha cumplimentado completamente, con todos los datos y comentarios necesarios, y suba el archivo resultante (conforme a la instrucciones que puede consultar en la pág. dedicada a la convocatoria en www.adismonta.com) a la sede electrónica de ADISMONTA, durante la tramitación de su solicitud de ayuda."]
["Recuerde, ante cualquier duda, consulte a los/as técnicos/as del CEDER de ADISMONTA"]
["Información Básica sobre tratamiento de datos personales"]
[]
["Responsable del tratamiento",null,"Consejería de Medio Ambiente y Rural, Políticas Agrarias y Territorio. Avda. Luis Ramallo s/n, 06800 Mérida (Badajoz).\nDelegado de Protección de Datos: dpd@juntaex.es"]
["Finalidades",null,"Ayudas bajo la metodología LEADER: Tramitación del expediente administrativo de solicitud de ayuda al amparo de la Orden de 18 de noviembre de 2020, POR LA QUE SE REGULA EL SISTEMA DE AYUDAS BAJO LA METODOLOGÍA LEADER Y EL PROCEDIMIENTO DE GESTIÓN, PARA EL PERIODO DE PROGRAMACIÓN DE DESARROLLO RURAL 2014-2020.\nSus datos podrán tratarse también para difundir, dar publicidad e informar de otras ayudas o asuntos que puedan ser de su interés."]
["Legitimación",null,"Misión de interés público y ejercicio de Poderes Públicos (art. 6.1 e) RGPD), para la finalidad principal, en virtud de la Ley 39/2015, de 1 de octubre, del Procedimiento Administrativo Común de las Administraciones Públicas y la Orden de 18 de noviembre de 2020. Tratamiento necesario para el cumplimiento de una obligación legal aplicable al Responsable del tratamiento (art. 6.1.c) RGPD).\nPara difundir, dar publicidad e informar de otras ayudas o asuntos que puedan ser de su interés, la legitimación es el consentimiento expreso (art. 6.1 a) RGPD)."]
["Destinatarios de los datos",null,"La Asociación para el Desarrollo Integral de Sierra de Montánchez y Tamuja (ADISMONTA) es el Encargado del tratamiento (art. 28 RGPD), y tratará sus datos por cuenta del Responsable del tratamiento.\nPodrán ser transferidos datos a otros organismos u órganos de la Administración Pública sin precisar el previo consentimiento del interesado, cuando así lo prevea una norma de Derecho de la Unión Europea o una Ley, que determine las cesiones que procedan como consecuencia del cumplimiento de la obligación legal, aunque deberemos informar de este tratamiento al interesado.\nSus datos podrán ser también compartidos con proveedores de servicios cuando sea necesaria su intervención para la prestación del servicio y en lo estrictamente imprescindible para los fines contratados.\nCualquier otra cesión de datos a terceros exigirá el previo consentimiento del interesado o contar con la autorización del Responsable, en los supuestos legalmente admisibles."]
["Derechos de los interesados",null,"Podrás acceder, rectificar, suprimir, oponerse a determinados tratamientos, así como ejercer su derecho a la limitación del tratamiento, a la portabilidad y a no ser objeto de una decisión basada únicamente en tratamiento automatizado de sus datos. En particular, tiene derecho a oponerse a recibir comunicaciones sobre productos y servicios determinados. Del mismo modo, el usuario tiene derecho a revocar su\nconsentimiento en cualquier momento"]
["Información Adicional",null,"http://www.juntaex.es/con03/tratamiento-de-datos-de-caracter-personal"]

{"sheet":"PROMOTOR","index":1,"n_rows":9,"n_cols":6,"rows_kept":9,"cut":false,"hidden":false,"merged":[[10,0,10,5],[2,0,2,9],[3,0,3,9],[4,1,4,4],[5,1,5,4],[6,0,7,0],[6,1,6,2],[6,3,6,4],[7,1,7,2],[7,3,7,4],[0,0,0,1],[0,2,0,3],[1,0,1,1],[1,2,1,3],[9,0,9,5]]}
["Nº de expediente:",null,408192]
["Nº Convocatoria",null,"1/2022"]
["LEADER 2014-2020\nEstrategia de Desarrollo Local Participativo en la comarca de Sierra de Montánchez y Tamuja"]
["MEMORIA DESCRIPTIVA INVERSIONES PRODUCTIVAS\nPLAN ECONÓMICO-FINANCIERO"]
["Promotor",null,null,null,null,"NIF/CIF"]
["Título del proyecto:"]
["Actuación en la que se enmarca",null,null,"A11.- Transformación y comercialización de productos agrícolas"]
[null,null,null,"A12.- Creación y desarrollo de empresas y actividades no agrícolas"]
[0]

{"sheet":"INVERSIONES","index":2,"n_rows":27,"n_cols":8,"rows_kept":27,"cut":false,"hidden":false,"merged":[[31,0,31,3],[32,0,32,3],[26,0,26,5],[27,0,27,3],[28,0,28,3],[29,0,29,3],[30,0,30,3],[20,0,25,0],[20,1,20,5],[21,1,21,5],[22,1,22,5],[23,1,23,5],[24,1,24,3],[25,1,25,3],[24,4,24,5],[25,4,25,5],[15,0,19,0],[15,1,15,5],[16,1,16,5],[17,1,17,5],[18,1,18,3],[19,1,19,3],[18,4,18,5],[19,4,19,5],[8,0,14,0],[8,1,8,5],[9,1,9,5],[10,1,10,5],[11,1,11,5],[12,1,12,5],[13,1,13,3],[14,1,14,3],[13,4,13,5],[14,4,14,5],[0,0,0,1],[1,0,1,7],[2,1,2,5],[3,0,7,0],[3,1,3,5],[4,1,4,5],[5,1,5,5],[0,2,0,7],[6,1,6,3],[7,1,7,3],[6,4,6,5],[7,4,7,5]]}
[12,null,"PLAN ECONÓMICO-FINANCIERO"]
["Plan de inversiones\nInformación sobre las inversiones de la operación para la que se solicita ayuda. Se incluirán exclusivamente los conceptos que forman parte del presupuesto para el que se solicita ayuda. El importe total sin I.V.A. debe coincidir con el que figura en la relación de facturas pro-forma y presupuesto que acompaña a la solicitud de ayuda."]
["Capítulo","Concepto",null,null,null,null,"Importe con IVA (€)","Importe sin IVA (€)"]
["Obra Civil e Instalaciones","Edificios (nueva construcción)",null,null,null,null,0,0]
[null,"Edificios (rehabilitación/acondicionamiento)",null,null,null,null,0,0]
[null,"Infraestructuras",null,null,null,null,0,0]
[null,"Otros (especificar):",null,null,null,null,0,0]
[null,"Otros (especificar):",null,null,null,null,0,0]
["Inmovilizado material","Otras instalaciones (no incluidas en Obra Civil)",null,null,null,null,0,0]
[null,"Maquinaria y utillaje",null,null,null,null,0,0]
[null,"Mobiliario",null,null,null,null,0,0]
[null,"Equipamiento informático",null,null,null,null,0,0]
[null,"Elementos de transporte",null,null,null,null,0,0]
[null,"Otros (especificar):",null,null,null,null,0,0]
[null,"Otros (especificar):",null,null,null,null,0,0]
["Inmovilizado intangible","Patentes",null,null,null,null,0,0]
[null,"Marcas",null,null,null,null,0,0]
[null,"Aplicaciones informáticas",null,null,null,null,0,0]
[null,"Otros (especificar):",null,null,null,null,0,0]
[null,"Otros (especificar):",null,null,null,null,0,0]
["Otras inversiones o gastos","Redacción de proyectos técnicos",null,null,null,null,0,0]
[null,"Dirección de obra y coord. seguridad-salud",null,null,null,null,0,0]
[null,"Estudios de viabilidad",null,null,null,null,0,0]
[null,"Licencias de obra y actividad",null,null,null,null,0,0]
[null,"Otros (especificar):",null,null,null,null,0,0]
[null,"Otros (especificar):",null,null,null,null,0,0]
["Total Inversión",null,null,null,null,null,{"$f":"SUM(G4:G26)","v":0},{"$f":"SUM(H4:H26)","v":0}]

{"sheet":"Amortizaciones","index":3,"n_rows":11,"n_cols":12,"rows_kept":11,"cut":false,"hidden":false,"merged":[[10,0,10,2],[9,0,9,2],[8,0,8,2],[7,0,7,2],[6,0,6,2],[5,0,5,2],[4,0,4,2],[3,0,3,2],[2,0,2,2],[0,0,0,11],[1,0,1,2]]}
["Plan de Amortización de las inversiones\n(Inversiones tiene que coincidir con sumas parciales según tipo de activos del Plan de Inversiones anterior)\nPeríodo de amortización (años): Aunque los valores por defecto suelen ser los más utilizados para el tipo de inversión del que se trata, aquí puedes modificar ese dato"]
["Activos",null,null,"Inversión","Período de\namortización (años)","Cuota anual de amortización (€)","Cuota anual año 2","Cuota anual año 3","Cuota anual año 4","Cuota anual año 5","Amortización Acumulada","Valor contable año 5ª"]
["Obra Civil e Instalaciones",null,null,{"$f":"INVERSIONES!H4+INVERSIONES!H5+INVERSIONES!H6","v":0},20,{"$f":"IF(E3<1,0,D3/E3)","v":0},{"$f":"IF(E3<2,0,D3/E3)","v":0},{"$f":"IF(E3<3,0,D3/E3)","v":0},{"$f":"IF(E3<4,0,D3/E3)","v":0},{"$f":"IF(E3<5,0,D3/E3)","v":0},{"$f":"SUM(F3:J3)","v":0},{"$f":"D3-K3","v":0}]
["Otros de Obra Civil e Instalaciones:",null,null,{"$f":"INVERSIONES!H7+INVERSIONES!H8","v":0},20,{"$f":"IF(E4<1,0,D4/E4)","v":0},{"$f":"IF(E4<2,0,D4/E4)","v":0},{"$f":"IF(E4<3,0,D4/E4)","v":0},{"$f":"IF(E4<4,0,D4/E4)","v":0},{"$f":"IF(E4<5,0,D4/E4)","v":0},{"$f":"SUM(F4:J4)","v":0},{"$f":"D4-K4","v":0}]
["Otras Instalaciones",null,null,{"$f":"INVERSIONES!H9","v":0},12,0,0,0,0,0,0,0]
["Maquinaria y utillaje",null,null,{"$f":"INVERSIONES!H10","v":0},10,0,0,0,0,0,0,0]
["Mobiliario",null,null,{"$f":"INVERSIONES!H11","v":0},10,0,0,0,0,0,0,0]
["Equipamiento informático",null,null,{"$f":"INVERSIONES!H12","v":0},3,0,0,0,0,0,0,0]
["Elementos de transporte",null,null,{"$f":"INVERSIONES!H13","v":0},10,0,0,0,0,0,0,0]
["Otros de Inmovilizado material",null,null,{"$f":"INVERSIONES!H14+INVERSIONES!H15","v":0},10,0,0,0,0,0,0,0]
["Totales ....",null,null,{"$f":"SUM(D3:D10)","v":0},null,{"$f":"SUM(F3:F10)","v":0},{"$f":"SUM(G3:G10)","v":0},0,0,0,{"$f":"SUM(K3:K10)","v":0},{"$f":"SUM(L3:L10)","v":0}]

{"sheet":"VENTASM2","index":4,"n_rows":29,"n_cols":6,"rows_kept":29,"cut":false,"hidden":false,"merged":[[14,0,14,4],[19,0,19,4],[24,0,24,4],[0,0,0,4],[3,0,3,4],[9,0,9,4],[2,1,2,4],[1,1,1,4]]}
["IMPORTANTE: IDENTIFICACIÓN DEL MÉTODO DE ANÁLISIS"]
[null,"Se trata de un proyecto de Nueva Creación. Por consiguiente, la totalidad de los costos e ingresos será atribuida al proyecto de inversión (Cumplimenta solo SITUACIÓN \"CON PROYECTO\")",null,null,null,0]
[".","Se trata de invertir en una actividad ya existente (mejora, modernización…) Por consiguiente, habrá de compararse la situación CON y SIN el nuevo proyecto, teniéndose finalmente en cuenta los costes e ingresos incrementales (Cumplimenta también SITUACIÓN BASE (SIN PROYECTO)"]
["ingresos/Ventas\nPROYECCIÓN DE LA SITUACIÓN BASE (SIN PROYECTO)\n(No cumplimentar en proyectos de nueva creación)\nEn base a las tendencias y situación actual de la empresa, proyectar cuáles serían los ingresos de explotación si NO se llevasen a cabo las inversiones en la modernización, mejora o ampliación que se solicita."]
["AÑO 1"]
["Concepto","Nº Unidades","Tipo de Unidades","Precio Medio Venta","Importe (€)"]
["Facturación Producto o Servicio I",null,null,null,{"$f":"B7*D7","v":0}]
["Facturación Producto o Servicio II",null,null,null,{"$f":"B8*D8","v":0}]
["Total Año 1",{"$f":"SUM(B7:B8)","v":0},null,null,{"$f":"SUM(E7:E8)","v":0}]
["AÑO 2"]
["Concepto","Nº Unidades","Tipo de Unidades","Precio Medio Venta","Importe (€)"]
["Facturación Producto o Servicio I",null,null,null,{"$f":"B12*D12","v":0}]
["Facturación Producto o Servicio II",null,null,null,{"$f":"B13*D13","v":0}]
["Total Año 2",{"$f":"SUM(B12:B13)","v":0},null,null,{"$f":"SUM(E12:E13)","v":0}]
["AÑO 3"]
["Concepto","Nº Unidades","Tipo de Unidades","Precio Medio Venta","Importe (€)"]
["Facturación Producto o Servicio I",null,null,null,{"$f":"B17*D17","v":0}]
["Facturación Producto o Servicio II",null,null,null,{"$f":"B18*D18","v":0}]
["Total Año 3",{"$f":"SUM(B17:B18)","v":0},null,null,{"$f":"SUM(E17:E18)","v":0}]
["AÑO 4"]
["Concepto","Nº Unidades","Tipo de Unidades","Precio Medio Venta","Importe (€)"]
["Facturación Producto o Servicio I",null,null,null,{"$f":"B22*D22","v":0}]
["Facturación Producto o Servicio II",null,null,null,{"$f":"B23*D23","v":0}]
["Total Año 4",{"$f":"SUM(B22:B23)","v":0},null,null,{"$f":"SUM(E22:E23)","v":0}]
["AÑO 5"]
["Concepto","Nº Unidades","Tipo de Unidades","Precio Medio Venta","Importe (€)"]
["Facturación Producto o Servicio I",null,null,null,{"$f":"B27*D27","v":0}]
["Facturación Producto o Servicio II",null,null,null,{"$f":"B28*D28","v":0}]
["Total Año 5",{"$f":"SUM(B27:B28)","v":0},null,null,{"$f":"SUM(E27:E28)","v":0}]

{"sheet":"VENTASM1","index":5,"n_rows":27,"n_cols":5,"rows_kept":27,"cut":false,"hidden":false,"merged":[[0,0,0,5],[1,4,1,5],[2,4,2,5],[27,0,27,5],[11,0,11,5],[12,4,12,5],[6,0,6,5],[7,4,7,5],[21,0,21,5],[22,4,22,5],[26,0,26,5],[16,0,16,5],[17,4,17,5]]}
["Previsión de ingresos/Ventas PROYECCIÓN DE LA SITUACIÓN CON PROYECTO\n(Cumplimentar en todos los casos)\nPrevisión de los ingresos de explotación que se generarán con la actividad en los 5 primeros ejercicios posteriores a la realización de las inversiones para las que se solicita subvención."]
["AÑO 1"]
["Concepto","Nº Unidades","Tipo de Unidades","Precio Medio\nVenta","Importe (€)"]
["Facturación Producto o Servicio I",null,null,null,{"$f":"B4*D4","v":0}]
["Facturación Producto o Servicio II",null,null,null,{"$f":"B5*D5","v":0}]
["Total Año 1",{"$f":"SUM(B4:B5)","v":0},null,null,{"$f":"SUM(E4:F5)","v":0}]
["AÑO 2"]
["Concepto","Nº Unidades","Tipo de Unidades","Precio Medio\nVenta","Importe (€)"]
["Facturación Producto o Servicio I",null,null,null,{"$f":"B9*D9","v":0}]
["Facturación Producto o Servicio II",null,null,null,{"$f":"B10*D10","v":0}]
["Total Año 2",{"$f":"SUM(B9:B10)","v":0},null,null,{"$f":"SUM(E9:F10)","v":0}]
["AÑO 3"]
["Concepto","Nº Unidades","Tipo de Unidades","Precio Medio\nVenta","Importe (€)"]
["Facturación Producto o Servicio I",null,null,null,{"$f":"B14*D14","v":0}]
["Facturación Producto o Servicio II",null,null,null,{"$f":"B15*D15","v":0}]
["Total Año 3",{"$f":"SUM(B14:B15)","v":0},null,null,{"$f":"SUM(E14:F15)","v":0}]
["AÑO 4"]
["Concepto","Nº Unidades","Tipo de Unidades","Precio Medio\nVenta","Importe (€)"]
["Facturación Producto o Servicio I",null,null,null,{"$f":"B19*D19","v":0}]
["Facturación Producto o Servicio II",null,null,null,{"$f":"B20*D20","v":0}]
["Total Año 4",{"$f":"SUM(B19:B20)","v":0},null,null,{"$f":"SUM(E19:F20)","v":0}]
["AÑO 5"]
["Concepto","Nº Unidades","Tipo de Unidades","Precio Medio\nVenta","Importe (€)"]
["Facturación Producto o Servicio I",null,null,null,{"$f":"B24*D24","v":0}]
["Facturación Producto o Servicio II",null,null,null,{"$f":"B25*D25","v":0}]
["Total Año 5",{"$f":"SUM(B24:B25)","v":0},null,null,{"$f":"SUM(E24:F25)","v":0}]
["Ingresos/Ventas\nJUSTIFICACIÓN Y COMENTARIOS SOBRE LAS CIFRAS ANTERIORES\nExplicación del tipo de unidades que se agrupan en los distintos subconceptos de facturación y justificación del incremento o no de unidades vendidas y precio medio de unidades, en base al efecto de las inversiones que se proponen y la situación del mercado (Para utilización de la plantilla, en los casos de más de dos Productos o Servicios, Vd. ha podido elegir agrupar varios de ellos en una sola línea de Producto o Servicios, debiendo indicar aquí los distintos productos o servicios agrupados).\n(Recuerda: ALT+Intro para salto de línea)"]

{"sheet":"PROYECM2","index":6,"n_rows":20,"n_cols":10,"rows_kept":20,"cut":false,"hidden":false,"merged":[[18,1,18,4],[19,0,19,9],[20,0,20,9],[13,1,13,4],[14,1,14,4],[15,1,15,4],[16,1,16,2],[17,1,17,4],[8,1,8,4],[9,1,9,4],[10,1,10,4],[11,1,11,4],[12,1,12,4],[5,1,5,4],[6,0,7,0],[6,1,7,1],[6,2,6,4],[7,2,7,4],[0,1,0,9],[1,1,1,4],[3,1,3,4],[2,1,2,4],[4,1,4,4]]}
[null,"Gastos de explotación y Fondos Generados PROYECCIÓN DE LA SITUACIÓN BASE (SIN PROYECTO)\n(No cumplimentar en proyectos de nueva creación)\nEn base a las tendencias de mercado y situación actual de la empresa, proyectar cuáles seguirían siendo los costes de explotación y fondos generado si NO se llevasen a cabo las inversiones en la modernización, mejora o ampliación que se solicita."]
[null,"Concepto",null,null,null,"Año 1","Año 2","Año 3","Año 4","Año 5"]
["+","Ventas e Ingresos\n",null,null,null,{"$f":"VENTASM2!E9","v":0},{"$f":"VENTASM2!E14","v":0},{"$f":"VENTASM2!E19","v":0},{"$f":"VENTASM2!E24","v":0},{"$f":"VENTASM2!E29","v":0}]
["_","Costes de Materias Primas",null,null,null,0,0,0,0,0]
["_","Suministros",null,null,null,0,0,0,0,0]
["=","VALOR AÑADIDO",null,null,null,{"$f":"F3-F4-F5","v":0},{"$f":"G3-G4-G5","v":0},0,0,0]
["_","Gastos de Personal (incluido\nimputación autónomo)","Retribuciones",null,null,0,0,0,0,0]
[null,null,"Seguridad social"]
["_","Gastos Generales"]
["_","Gastos Administrativos"]
["=","MARGEN BRUTO",null,null,null,{"$f":"F6-F7-F8-F9-F10","v":0},{"$f":"G6-G7-G8-G9-G10","v":0},0,0,0]
["_","Gastos comerciales"]
["_","Amortizaciones (de activos actuales, sin realizar inversiones)"]
["=","B.A.I.I.",null,null,null,{"$f":"F11-F12-F13","v":0},{"$f":"G11-G12-G13","v":0},0,0,0]
["_","Gastos Financieros"]
["=","B.A.I.",null,null,null,{"$f":"F14-F15","v":0},{"$f":"G14-G15","v":0},0,0,0]
["_","Impuestos      Tipo G.:",null,25,"%",{"$f":"F16/100*D17","v":0},{"$f":"G16/100*D17","v":0},{"$f":"H16/100*D17","v":0},{"$f":"I16/100*D17","v":0},{"$f":"J16/100*D17","v":0}]
["=","BENEFICIO NETO",null,null,null,{"$f":"F16-F17","v":0},{"$f":"G16-G17","v":0},0,0,0]
["=","FONDOS GENERADOS\nBeneficio Neto+Amortizaciones",null,null,null,{"$f":"F18+F13","v":0},{"$f":"G18+G13","v":0},0,0,0]
["JUSTIFICACIÓN Y COMENTARIOS SOBRE LAS CIFRAS ANTERIORES:\n(Recuerda: ALT+Intro para salto de línea)"]

{"sheet":"PROYECM1","index":7,"n_rows":21,"n_cols":10,"rows_kept":21,"cut":false,"hidden":false,"merged":[[21,0,21,9],[18,1,18,4],[13,1,13,4],[14,1,14,4],[15,1,15,4],[16,1,16,2],[17,1,17,4],[19,0,19,9],[20,0,20,9],[8,1,8,4],[9,1,9,4],[10,1,10,4],[11,1,11,4],[12,1,12,4],[5,1,5,4],[6,0,7,0],[6,1,7,1],[6,2,6,4],[7,2,7,4],[0,0,0,9],[1,0,1,4],[2,1,2,4],[3,1,3,4],[4,1,4,4]]}
["Previsión de Gastos de explotación y Fondos Generados PROYECCIÓN DE LA SITUACIÓN CON PROYECTO\n(Cumplimentar en todos los casos)\nPrevisión de los gastos de explotación que se tendrán con la actividad en los 5 primeros ejercicios posteriores a la realización de las inversiones para las que se solicita subvención, y su integración en el cuadro de Fondos Generados"]
["Concepto",null,null,null,null,"Año 1","Año 2","Año 3","Año 4","Año 5"]
["+","Ventas e Ingresos",null,null,null,{"$f":"VENTASM1!E6","v":0},{"$f":"VENTASM1!E11","v":0},{"$f":"VENTASM1!E16","v":0},{"$f":"VENTASM1!E21","v":0},{"$f":"VENTASM1!E26","v":0}]
["_","Costes de Materias Primas",null,null,null,0,0,0,0,0]
["_","Suministros",null,null,null,0,0,0,0,0]
["=","VALOR AÑADIDO",null,null,null,{"$f":"F3-F4-F5","v":0},{"$f":"G3-G4-G5","v":0},0,0,0]
["_","Gastos de Personal (incluido\nimputación autónomo)","Retribuciones",null,null,0,0,0,0,0]
[null,null,"Seguridad social",null,null,0,0,0,0,0]
["_","Gastos Generales",null,null,null,0,0,0,0,0]
["_","Gastos Administrativos",null,null,null,0,0,0,0,0]
["=","MARGEN BRUTO",null,null,null,{"$f":"F6-F7-F8-F9-F10","v":0},{"$f":"G6-G7-G8-G9-G10","v":0},0,{"$f":"I6-I7-I8-I9-I10","v":0},0]
["_","Gastos comerciales",null,null,null,0,0,0,0,0]
["_","Amortizaciones (traslada datos del Plan de Amortización)",null,null,null,{"$f":"Amortizaciones!F11","v":0},{"$f":"Amortizaciones!G11","v":0},{"$f":"Amortizaciones!H11","v":0},{"$f":"Amortizaciones!I11","v":0},{"$f":"Amortizaciones!J11","v":0}]
["=","B.A.I.I.",null,null,null,{"$f":"F11-F12-F13","v":0},{"$f":"G11-G12-G13","v":0},0,0,0]
["_","Gastos Financieros"]
["=","B.A.I.",null,null,null,{"$f":"F14-F15","v":0},{"$f":"G14-G15","v":0},0,0,0]
["_","Impuestos    Tipo G.:",null,20,"%",{"$f":"F16/100*D17","v":0},{"$f":"G16/100*D17","v":0},{"$f":"H16/100*D17","v":0},{"$f":"I16/100*D17","v":0},{"$f":"J16/100*D17","v":0}]
["=","BENEFICIO NETO",null,null,null,{"$f":"F16-F17","v":0},{"$f":"G16-G17","v":0},0,0,0]
["=","FONDOS GENERADOS\nBeneficio Neto+Amortizaciones",null,null,null,{"$f":"F18+F13","v":0},{"$f":"G18+G13","v":0},0,0,0]
["Gastos de explotación\nJUSTIFICACIÓN Y COMENTARIOS SOBRE LAS CIFRAS ANTERIORES"]
["Explicación del tipo de costes de explotación que se contemplan en los distintos conceptos de gasto y la justificación sobre las consideraciones y cálculos para llegar a las cifras anteriores\nHipótesis mantenidas para el incremento en el número de unidades necesarias (en materias primas, suministros, personal, gastos generales, administrativos, comerciales, etc) y/o los precios de compra; Tipo de Gravamen para Impuestos aplicado...\n(Recuerda: ALT+Intro para salto de línea)"]

{"sheet":"HIPÓTESISFM","index":8,"n_rows":19,"n_cols":5,"rows_kept":19,"cut":false,"hidden":false,"merged":[[17,1,17,2],[18,0,18,5],[19,0,19,5],[0,0,0,5],[1,0,1,5],[2,1,2,4],[3,0,17,0],[3,1,3,2],[4,1,4,2],[5,1,5,2],[6,1,6,2],[8,1,8,2],[10,1,10,2],[11,1,11,2],[12,1,12,2],[13,1,13,2],[15,1,15,2]]}
["Fondos de Maniobra\nHIPÓTESIS PARA EL CÁLCULO DE FONOS DE MANIOBRA"]
["En particular, indicar el nº de días o porcentaje que se tendrá en cuenta para las siguientes hipótesis, en función del tipo de negocio (en función de tales hipótesis se calculará la inversión en fondo de maniobra):"]
[null,"HIPÓTESIS PARA FONDO DE MANIOBRA"]
[null,"ACTIVO CIRCULANTE",null,"HIPÓTESIS"]
[null,"Existencia Materias primas (días)",null,0,"días"]
[null,"Existencia Productos Terminados (días)",null,0,"días"]
[null,"Clientes 1º plazo (% s/Ventas)",null,100,"%"]
[null,"Clientes","(para cálculo en días)",0,"días"]
[null,"Clientes 2º plazo (% s/Ventas)",null,{"$f":"IF(H_Clientes_1_Plazo_P=0,0,100-H_Clientes_1_Plazo_P)","v":0},"%"]
[null,"Clientes","(para cálculo en días)",0,"días"]
[null,"Tesorería operativa (% s/Ventas)",null,3,"% s/Ventas"]
[]
[null,"PASIVO CIRCULANTE",null,"HIPÓTESIS"]
[null,"Proveedores 1º plazo Porcentaje",null,100,"%"]
[null,"Proveedores","días",0,"días"]
[null,"Proveedores 2º plazo Porcentaje",null,{"$f":"IF(H_Proveedores_1_Plazo_P=0,0,100-H_Proveedores_1_Plazo_P)","v":0},"%"]
[null,"Proveedores","días",0,"días"]
[null,"Acreedores (no se tiene aquí en cuenta)"]
["Comentarios y otro tipo de justificaciones (Recuerda: ALT+Intro para salto de línea):"]

{"sheet":"FONDOSMANIOBRA","index":9,"n_rows":33,"n_cols":6,"rows_kept":33,"cut":false,"hidden":false,"merged":[[32,0,32,5],[33,0,33,5],[29,0,29,5],[13,0,13,5],[16,0,16,5],[18,0,18,5],[24,0,24,5],[0,0,0,5],[2,0,2,5],[8,0,8,5],[9,0,9,5],[25,0,25,5]]}
["Inversión en Fondos de Maniobra PROYECCIÓN DE LA SITUACIÓN BASE (SIN PROYECTO)\n(No cumplimentar en proyectos de nueva creación)\nEn base a las necesidades y situación actual de la empresa, proyectar cuáles seguirían siendo las necesidades en Activo y Pasivo Circulante como Fondos de Maniobra para el desarrollo de las actividades."]
["Descripción partidas","Año 1","Año 2","Año 3","Año 4","Año 5"]
["ACTIVO CIRCULANTE"]
["En Existencias Materias Primas",{"$f":"(PROYECM2!F4+PROYECM2!F5/365)*H_Existencia_Materias_Primas","v":0},{"$f":"(PROYECM2!G4+PROYECM2!G5/365)*H_Existencia_Materias_Primas","v":0},{"$f":"(PROYECM2!H4+PROYECM2!H5/365)*H_Existencia_Materias_Primas","v":0},{"$f":"(PROYECM2!I4+PROYECM2!I5/365)*H_Existencia_Materias_Primas","v":0},{"$f":"(PROYECM2!J4+PROYECM2!J5/365)*H_Existencia_Materias_Primas","v":0}]
["En Existencias Productos Terminados",{"$f":"(PROYECM2!F3/365)*H_Existencia_Productos_Terminados","v":0},{"$f":"(PROYECM2!G3/365)*H_Existencia_Productos_Terminados","v":0},{"$f":"(PROYECM2!H3/365)*H_Existencia_Productos_Terminados","v":0},{"$f":"(PROYECM2!I3/365)*H_Existencia_Productos_Terminados","v":0},{"$f":"(PROYECM2!J3/365)*H_Existencia_Productos_Terminados","v":0}]
["Clientes",{"$f":"((((PROYECM2!F3/100)*H_Clientes_1_Plazo_P)/365)*H_Clientes_1_Plazo_Dias)+((((PROYECM2!F3/100)*H_Clientes_2_Plazo_P)/365)*H_Clientes_2_Plazo_Dias)","v":0},{"$f":"((((PROYECM2!G3/100)*H_Clientes_1_Plazo_P)/365)*H_Clientes_1_Plazo_Dias)+((((PROYECM2!G3/100)*H_Clientes_2_Plazo_P)/365)*H_Clientes_2_Plazo_Dias)","v":0},{"$f":"((((PROYECM2!H3/100)*H_Clientes_1_Plazo_P)/365)*H_Clientes_1_Plazo_Dias)+((((PROYECM2!H3/100)*H_Clientes_2_Plazo_P)/365)*H_Clientes_2_Plazo_Dias)","v":0},{"$f":"((((PROYECM2!I3/100)*H_Clientes_1_Plazo_P)/365)*H_Clientes_1_Plazo_Dias)+((((PROYECM2!I3/100)*H_Clientes_2_Plazo_P)/365)*H_Clientes_2_Plazo_Dias)","v":0},{"$f":"((((PROYECM2!J3/100)*H_Clientes_1_Plazo_P)/365)*H_Clientes_1_Plazo_Dias)+((((PROYECM2!J3/100)*H_Clientes_2_Plazo_P)/365)*H_Clientes_2_Plazo_Dias)","v":0}]
["Tesorería",{"$f":"(PROYECM2!F3/100)*H_Tesoreria_s_ventas","v":0},{"$f":"(PROYECM2!G3/100)*H_Tesoreria_s_ventas","v":0},{"$f":"(PROYECM2!H3/100)*H_Tesoreria_s_ventas","v":0},{"$f":"(PROYECM2!I3/100)*H_Tesoreria_s_ventas","v":0},{"$f":"(PROYECM2!J3/100)*H_Tesoreria_s_ventas","v":0}]
["Total Activo Circulante",{"$f":"SUM(B4:B7)","v":0},{"$f":"SUM(C4:C7)","v":0},0,0,0]
[]
["PASIVO CIRCULANTE"]
["Proveedores",{"$f":"(((((PROYECM2!F4+PROYECM2!F5)/100)*H_Proveedores_1_Plazo_P)/365)*H_Proveedores_1_Plazo_Dias)+(((((PROYECM2!F4+PROYECM2!F5)/100)*H_Proveederes_2_Plazo_P)/365)*H_Proveedores_2_Plazo_Dias)","v":0},{"$f":"(((((PROYECM2!G4+PROYECM2!G5)/100)*H_Proveedores_1_Plazo_P)/365)*H_Proveedores_1_Plazo_Dias)+(((((PROYECM2!G4+PROYECM2!G5)/100)*H_Proveederes_2_Plazo_P)/365)*H_Proveedores_2_Plazo_Dias)","v":0},{"$f":"(((((PROYECM2!H4+PROYECM2!H5)/100)*H_Proveedores_1_Plazo_P)/365)*H_Proveedores_1_Plazo_Dias)+(((((PROYECM2!H4+PROYECM2!H5)/100)*H_Proveederes_2_Plazo_P)/365)*H_Proveedores_2_Plazo_Dias)","v":0},{"$f":"(((((PROYECM2!I4+PROYECM2!I5)/100)*H_Proveedores_1_Plazo_P)/365)*H_Proveedores_1_Plazo_Dias)+(((((PROYECM2!I4+PROYECM2!I5)/100)*H_Proveederes_2_Plazo_P)/365)*H_Proveedores_2_Plazo_Dias)","v":0},{"$f":"(((((PROYECM2!J4+PROYECM2!J5)/100)*H_Proveedores_1_Plazo_P)/365)*H_Proveedores_1_Plazo_Dias)+(((((PROYECM2!J4+PROYECM2!J5)/100)*H_Proveederes_2_Plazo_P)/365)*H_Proveedores_2_Plazo_Dias)","v":0}]
["Acreedores",0,0,0,0,0]
["Total Pasivo Circulante",{"$f":"SUM(B11:B12)","v":0},{"$f":"SUM(C11:C12)","v":0},0,0,0]
[]
["FONDO DE MANIOBRA",{"$f":"B8-B13","v":0},{"$f":"C8-C13","v":0},{"$f":"D8-D13","v":0},0,0]
["INVERSIÓN EN FONDO DE MANIOBRA",{"$f":"B15","v":0},{"$f":"IF(C15-B15>0,C15-B15,0)","v":0},{"$f":"IF(D15-C15>0,D15-C15,0)","v":0},0,0]
["Inversión en Fondos de Maniobra PROYECCIÓN DE LA SITUACIÓN CON PROYECTO\n(Cumplimentar en todos los casos)\nProyectar cuáles serían las necesidades en Activo y Pasivo Circulante como Fondos de Maniobra en los 5 primeros ejercicios posteriores a la realización de las inversiones para las que se solicita subvención"]
["Descripción partidas","Año 1","Año 2","Año 3","Año 4","Año 5"]
["ACTIVO CIRCULANTE"]
["En Existencias Materias Primas",{"$f":"(PROYECM1!F4+PROYECM1!F5/365)*H_Existencia_Materias_Primas","v":0},{"$f":"(PROYECM1!G4+PROYECM1!G5/365)*H_Existencia_Materias_Primas","v":0},{"$f":"(PROYECM1!H4+PROYECM1!H5/365)*H_Existencia_Materias_Primas","v":0},{"$f":"(PROYECM1!I4+PROYECM1!I5/365)*H_Existencia_Materias_Primas","v":0},{"$f":"(PROYECM1!J4+PROYECM1!J5/365)*H_Existencia_Materias_Primas","v":0}]
["En Existencias Productos Terminados",{"$f":"(PROYECM1!F3/365)*H_Existencia_Productos_Terminados","v":0},{"$f":"(PROYECM1!G3/365)*H_Existencia_Productos_Terminados","v":0},{"$f":"(PROYECM1!H3/365)*H_Existencia_Productos_Terminados","v":0},{"$f":"(PROYECM1!I3/365)*H_Existencia_Productos_Terminados","v":0},{"$f":"(PROYECM1!J3/365)*H_Existencia_Productos_Terminados","v":0}]
["Clientes",{"$f":"((((PROYECM1!F3/100)*H_Clientes_1_Plazo_P)/365)*H_Clientes_1_Plazo_Dias)+((((PROYECM1!F3/100)*H_Clientes_2_Plazo_P)/365)*H_Clientes_2_Plazo_Dias)","v":0},{"$f":"((((PROYECM1!G3/100)*H_Clientes_1_Plazo_P)/365)*H_Clientes_1_Plazo_Dias)+((((PROYECM1!G3/100)*H_Clientes_2_Plazo_P)/365)*H_Clientes_2_Plazo_Dias)","v":0},{"$f":"((((PROYECM1!H3/100)*H_Clientes_1_Plazo_P)/365)*H_Clientes_1_Plazo_Dias)+((((PROYECM1!H3/100)*H_Clientes_2_Plazo_P)/365)*H_Clientes_2_Plazo_Dias)","v":0},{"$f":"((((PROYECM1!I3/100)*H_Clientes_1_Plazo_P)/365)*H_Clientes_1_Plazo_Dias)+((((PROYECM1!I3/100)*H_Clientes_2_Plazo_P)/365)*H_Clientes_2_Plazo_Dias)","v":0},{"$f":"((((PROYECM1!J3/100)*H_Clientes_1_Plazo_P)/365)*H_Clientes_1_Plazo_Dias)+((((PROYECM1!J3/100)*H_Clientes_2_Plazo_P)/365)*H_Clientes_2_Plazo_Dias)","v":0}]
["Tesorería",{"$f":"(PROYECM1!F3/100)*H_Tesoreria_s_ventas","v":0},{"$f":"(PROYECM1!G3/100)*H_Tesoreria_s_ventas","v":0},{"$f":"(PROYECM1!H3/100)*H_Tesoreria_s_ventas","v":0},{"$f":"(PROYECM1!I3/100)*H_Tesoreria_s_ventas","v":0},{"$f":"(PROYECM1!J3/100)*H_Tesoreria_s_ventas","v":0}]
["Total Activo Circulante",{"$f":"SUM(B20:B23)","v":0},{"$f":"SUM(C20:C23)","v":0},0,0,0]
[]
["PASIVO CIRCULANTE"]
["Proveedores",{"$f":"(((((PROYECM1!F4+PROYECM1!F5)/100)*H_Proveedores_1_Plazo_P)/365)*H_Proveedores_1_Plazo_Dias)+(((((PROYECM1!F4+PROYECM1!F5)/100)*H_Proveederes_2_Plazo_P)/365)*H_Proveedores_2_Plazo_Dias)","v":0},{"$f":"(((((PROYECM1!G4+PROYECM1!G5)/100)*H_Proveedores_1_Plazo_P)/365)*H_Proveedores_1_Plazo_Dias)+(((((PROYECM1!G4+PROYECM1!G5)/100)*H_Proveederes_2_Plazo_P)/365)*H_Proveedores_2_Plazo_Dias)","v":0},{"$f":"(((((PROYECM1!H4+PROYECM1!H5)/100)*H_Proveedores_1_Plazo_P)/365)*H_Proveedores_1_Plazo_Dias)+(((((PROYECM1!H4+PROYECM1!H5)/100)*H_Proveederes_2_Plazo_P)/365)*H_Proveedores_2_Plazo_Dias)","v":0},{"$f":"(((((PROYECM1!I4+PROYECM1!I5)/100)*H_Proveedores_1_Plazo_P)/365)*H_Proveedores_1_Plazo_Dias)+(((((PROYECM1!I4+PROYECM1!I5)/100)*H_Proveederes_2_Plazo_P)/365)*H_Proveedores_2_Plazo_Dias)","v":0},{"$f":"(((((PROYECM1!J4+PROYECM1!J5)/100)*H_Proveedores_1_Plazo_P)/365)*H_Proveedores_1_Plazo_Dias)+(((((PROYECM1!J4+PROYECM1!J5)/100)*H_Proveederes_2_Plazo_P)/365)*H_Proveedores_2_Plazo_Dias)","v":0}]
["Acreedores"]
["Total Pasivo Circulante",{"$f":"SUM(B27:B28)","v":0},{"$f":"SUM(C27:C28)","v":0},0,0,0]
[]
["FONDO DE MANIOBRA",{"$f":"B24-B29","v":0},{"$f":"C24-C29","v":0},0,0,0]
["INVERSIÓN EN FONDO DE MANIOBRA",{"$f":"B31","v":0},{"$f":"IF(C31-B31>0,C31-B31,0)","v":0},{"$f":"IF(D31-C31>0,D31-C31,0)","v":0},0,0]
["Observaciones generales al plan económico-financiero\n(Recuerda: ALT+Intro para salto de línea)"]

{"sheet":"RESULTADOSM2","index":10,"n_rows":12,"n_cols":8,"rows_kept":12,"cut":false,"hidden":false,"merged":[[11,0,11,7],[7,7,7,8],[6,0,6,8],[2,7,2,8],[0,0,0,7],[1,0,1,8],[9,7,9,8],[10,7,10,8]]}
["CUADROS DE RESULTADOS (M2: DIFERENCIAL SIN-CON PROYECTO)"]
["FONDOS ABSORBIDOS"]
[null,null,"Año 1","Año 2","Año 3","Año 4","Año 5","Año 5*"]
["INV. EN ACTIVOS INMOVILIZADOS",{"$f":"INVERSIONES!H27","v":0},null,null,null,null,null,{"$f":"Amortizaciones!L11/-1","v":0}]
["INV. EN FONDO DE\nMANIOBRA",null,{"$f":"FONDOSMANIOBRA!B32-FONDOSMANIOBRA!B16","v":0},{"$f":"FONDOSMANIOBRA!C32-FONDOSMANIOBRA!C16","v":0},{"$f":"FONDOSMANIOBRA!D32-FONDOSMANIOBRA!D16","v":0},{"$f":"FONDOSMANIOBRA!E32-FONDOSMANIOBRA!E16","v":0},{"$f":"FONDOSMANIOBRA!F32-FONDOSMANIOBRA!F16","v":0},{"$f":"SUM(C5:G5)/-1","v":0}]
["TOTAL FONDOS ABSORBIDOS",{"$f":"SUM(B4:B5)","v":0},{"$f":"SUM(C4:C5)","v":0},0,0,0,0,0]
["CASH FLOW OPERATIVO (FLUJO DE CAJA)"]
[null,"Año 0","Año 1","Año 2","Año 3","Año 4","Año 5","Año 5*"]
["FONDOS\nABSORBIDOS",{"$f":"B6","v":0},{"$f":"C6","v":0},0,0,0,0,0]
["FONDOS GENERADOS",null,{"$f":"PROYECM1!F19-PROYECM2!F19","v":0},{"$f":"PROYECM1!G19-PROYECM2!G19","v":0},{"$f":"PROYECM1!H19-PROYECM2!H19","v":0},{"$f":"PROYECM1!I19-PROYECM2!I19","v":0},{"$f":"PROYECM1!J19-PROYECM2!J19","v":0}]
["CASH FLOW OPERATIVO",{"$f":"B10-B9","v":0},{"$f":"C10-C9","v":0},0,0,0,{"$f":"(G10-G9)+(H10-H9)","v":0}]
["(Año 5*: momento en el que se simula la liquidación de inversiones)"]

{"sheet":"RESULTADOSM1","index":11,"n_rows":12,"n_cols":8,"rows_kept":12,"cut":false,"hidden":true,"merged":[[10,7,10,8],[11,0,11,7],[0,0,0,7],[1,0,1,8],[2,7,2,8],[6,0,6,8],[7,7,7,8],[9,7,9,8]]}
["CUADROS DE RESULTADOS  (M1: NUEVA CREACIÓN: CON PROYECTO)"]
["FONDOS ABSORBIDOS"]
[null,null,"Año 1","Año 2","Año 3","Año 4","Año 5","Año 5*"]
["INV. EN ACTIVOS INMOVILIZADOS",{"$f":"INVERSIONES!H27","v":0},null,null,null,null,null,{"$f":"Amortizaciones!L11/-1","v":0}]
["INV. EN FONDO DE\nMANIOBRA",null,{"$f":"FONDOSMANIOBRA!B32","v":0},{"$f":"FONDOSMANIOBRA!C32","v":0},{"$f":"FONDOSMANIOBRA!D32","v":0},{"$f":"FONDOSMANIOBRA!E32","v":0},{"$f":"FONDOSMANIOBRA!F32","v":0},{"$f":"SUM(C5:G5)/-1","v":0}]
["TOTAL FONDOS ABSORBIDOS",{"$f":"SUM(B4:B5)","v":0},{"$f":"SUM(C4:C5)","v":0},0,0,0,0,0]
["CASH FLOW OPERATIVO (FLUJO DE CAJA)"]
[null,"Año 0","Año 1","Año 2","Año 3","Año 4","Año 5","Año 5*"]
["FONDOS\nABSORBIDOS",{"$f":"B6","v":0},{"$f":"C6","v":0},0,0,0,0,0]
["FONDOS GENERADOS",null,{"$f":"PROYECM1!F19","v":0},{"$f":"PROYECM1!G19","v":0},{"$f":"PROYECM1!H19","v":0},{"$f":"PROYECM1!I19","v":0},{"$f":"PROYECM1!J19","v":0}]
["CASH FLOW OPERATIVO",{"$f":"B10-B9","v":0},{"$f":"C10-C9","v":0},0,0,0,{"$f":"(G10-G9)+(H10-H9)","v":0}]
["(Año 5*: momento en el que se simula la liquidación de inversiones)"]